[Event "*** SCC Grand Prix: Titled Tuesday Blitz"]
[Site "Chess.com"]
[Date "2020.08.04"]
[Round "6"]
[White "ZEN-22"]
[Black "Jenia84"]
[Result "1-0"]
[WhiteElo "2502"]
[BlackElo "2354"]
[TimeControl "180+1"]
[EndTime "14:51:09 PDT"]
[Termination "ZEN-22 won by resignation"]

1. d3 {[%clk 0:03:00.9]} 1... Nf6 {[%clk 0:02:55.5]} 2. g3 {[%clk 0:03:01.8]}
2... d5 {[%clk 0:02:55.1]} 3. Bg2 {[%clk 0:03:02.7]} 3... g6 {[%clk 0:02:54.9]}
4. Nf3 {[%clk 0:03:03.6]} 4... Bg7 {[%clk 0:02:55.4]} 5. c4 {[%clk 0:03:04.2]}
5... O-O {[%clk 0:02:55.1]} 6. cxd5 {[%clk 0:03:04.3]} 6... Nxd5 {[%clk
0:02:54.5]} 7. O-O {[%clk 0:03:04.2]} 7... c6 {[%clk 0:02:53.7]} 8. h4 {[%clk
0:02:58]} 8... h6 {[%clk 0:02:51.3]} 9. Nc3 {[%clk 0:02:57.2]} 9... Nxc3 {[%clk
0:02:49.8]} 10. bxc3 {[%clk 0:02:58.1]} 10... Be6 {[%clk 0:02:35.7]} 11. Nd4
{[%clk 0:02:56.5]} 11... Bd7 {[%clk 0:02:30.2]} 12. Qb3 {[%clk 0:02:55.6]} 12...
Qc8 {[%clk 0:02:25]} 13. Re1 {[%clk 0:02:53.4]} 13... Na6 {[%clk 0:02:23.9]} 14.
Ba3 {[%clk 0:02:52.1]} 14... Re8 {[%clk 0:02:20.7]} 15. e4 {[%clk 0:02:51.2]}
15... Nc7 {[%clk 0:02:16.3]} 16. Rab1 {[%clk 0:02:45.7]} 16... Rb8 {[%clk
0:02:05.9]} 17. e5 {[%clk 0:02:38.9]} 17... Ne6 {[%clk 0:02:04.6]} 18. Nxe6
{[%clk 0:02:38.6]} 18... Bxe6 {[%clk 0:02:04.5]} 19. c4 {[%clk 0:02:39.5]} 19...
Qd7 {[%clk 0:02:01.5]} 20. Bc5 {[%clk 0:02:35.8]} 20... b6 {[%clk 0:01:58.6]}
21. Be3 {[%clk 0:02:35.3]} 21... c5 {[%clk 0:01:58.3]} 22. a4 {[%clk 0:02:31.3]}
22... Bf5 {[%clk 0:01:56.8]} 23. Rbd1 {[%clk 0:02:30.8]} 23... Red8 {[%clk
0:01:49.7]} 24. d4 {[%clk 0:02:30.9]} 24... cxd4 {[%clk 0:01:46.2]} 25. Rxd4
{[%clk 0:02:30.6]} 25... Qc7 {[%clk 0:01:44.4]} 26. Rd5 {[%clk 0:02:25.1]} 26...
Be6 {[%clk 0:01:43.2]} 27. Bf4 {[%clk 0:02:12.2]} 27... Rbc8 {[%clk 0:01:35.6]}
28. Rxd8+ {[%clk 0:02:10.1]} 28... Rxd8 {[%clk 0:01:35.3]} 29. Bd5 {[%clk
0:02:10.7]} 29... Qd7 {[%clk 0:01:15.8]} 30. Rd1 {[%clk 0:02:07.4]} 30... Bg4
{[%clk 0:01:13]} 31. Bf3 {[%clk 0:01:59.2]} 31... Qxd1+ {[%clk 0:01:11]} 32.
Bxd1 {[%clk 0:01:58.9]} 32... Rxd1+ {[%clk 0:01:07.7]} 33. Kg2 {[%clk
0:01:58.4]} 33... Rd7 {[%clk 0:01:02.3]} 34. Qe3 {[%clk 0:01:55.9]} 34... Kh7
{[%clk 0:00:59.9]} 35. f3 {[%clk 0:01:55.7]} 35... Be6 {[%clk 0:01:00]} 36. g4
{[%clk 0:01:55.8]} 36... Bxc4 {[%clk 0:00:59.1]} 37. h5 {[%clk 0:01:55.9]} 37...
Rd3 {[%clk 0:00:55.5]} 38. Qe4 {[%clk 0:01:55.3]} 38... b5 {[%clk 0:00:49.2]}
39. axb5 {[%clk 0:01:51]} 39... Bxb5 {[%clk 0:00:50.1]} 40. hxg6+ {[%clk
0:01:50.9]} 40... fxg6 {[%clk 0:00:49.8]} 41. Kg3 {[%clk 0:01:50.2]} 41... a6
{[%clk 0:00:49.6]} 42. e6 {[%clk 0:01:44.1]} 42... Bf6 {[%clk 0:00:47.4]} 43.
Be5 {[%clk 0:01:40.6]} 43... Kg7 {[%clk 0:00:45.5]} 44. Bxf6+ {[%clk 0:01:36.7]}
44... Kxf6 {[%clk 0:00:45.7]} 45. Qf4+ {[%clk 0:01:35.5]} 45... Kxe6 {[%clk
0:00:45.4]} 46. Qxh6 {[%clk 0:01:35.1]} 46... Kf7 {[%clk 0:00:42.8]} 47. Qh7+
{[%clk 0:01:28.6]} 47... Kf6 {[%clk 0:00:43.1]} 48. Qh8+ {[%clk 0:01:25.5]}
48... Kf7 {[%clk 0:00:42.8]} 49. Qc8 {[%clk 0:01:20]} 49... Kg7 {[%clk
0:00:32.8]} 50. Qc5 {[%clk 0:01:17.4]} 50... Kf7 {[%clk 0:00:32.6]} 51. Kf4
{[%clk 0:01:16.3]} 51... Rd6 {[%clk 0:00:30]} 52. Kg5 {[%clk 0:01:14.8]} 52...
Rf6 {[%clk 0:00:30.1]} 53. f4 {[%clk 0:01:13.8]} 53... Bc6 {[%clk 0:00:29.7]}
54. Qc4+ {[%clk 0:01:12.8]} 54... Kg7 {[%clk 0:00:28.5]} 55. Qxa6 {[%clk
0:01:11]} 55... Kf7 {[%clk 0:00:28.8]} 56. Qc4+ {[%clk 0:01:10.1]} 56... Kg7
{[%clk 0:00:28.2]} 57. Qe2 {[%clk 0:01:10]} 57... Kf7 {[%clk 0:00:28.2]} 58. Qe5
{[%clk 0:01:10.4]} 58... Bd7 {[%clk 0:00:27.4]} 59. Qd5+ {[%clk 0:01:09.7]}
59... Be6 {[%clk 0:00:27.6]} 60. Qd4 {[%clk 0:01:09.5]} 60... Ba2 {[%clk
0:00:27.3]} 61. Kh4 {[%clk 0:01:08.1]} 61... Be6 {[%clk 0:00:25.4]} 62. Qe4
{[%clk 0:01:06.7]} 62... Ba2 {[%clk 0:00:24.1]} 63. Qa8 {[%clk 0:01:01.1]} 63...
Be6 {[%clk 0:00:22.4]} 64. Qb8 {[%clk 0:01:01.4]} 64... Ba2 {[%clk 0:00:21.4]}
65. Kg3 {[%clk 0:01:01]} 65... Be6 {[%clk 0:00:20.2]} 66. Qh8 {[%clk 0:01:01]}
66... Ba2 {[%clk 0:00:17.5]} 67. Qh7+ {[%clk 0:01:00.5]} 67... Ke8 {[%clk
0:00:17.7]} 68. f5 {[%clk 0:00:57.9]} 68... gxf5 {[%clk 0:00:17.4]} 69. g5
{[%clk 0:00:57.8]} 69... Rf7 {[%clk 0:00:16.5]} 70. Qg8+ {[%clk 0:00:58]} 70...
Rf8 {[%clk 0:00:16.7]} 71. Qxa2 {[%clk 0:00:54.4]} 1-0

[Event "*** SCC Grand Prix: Titled Tuesday Blitz"]
[Site "Chess.com"]
[Date "2020.08.04"]
[Round "6"]
[White "Robert_Chessmood"]
[Black "German_Bazeev"]
[Result "1/2-1/2"]
[WhiteElo "2954"]
[BlackElo "2745"]
[TimeControl "180+1"]
[EndTime "14:51:11 PDT"]
[Termination "Game drawn by repetition"]

1. e4 {[%clk 0:03:00.9]} 1... Nf6 {[%clk 0:02:59.7]} 2. e5 {[%clk 0:02:59.6]}
2... Nd5 {[%clk 0:02:59.8]} 3. Nc3 {[%clk 0:02:59.3]} 3... Nxc3 {[%clk
0:02:59.4]} 4. dxc3 {[%clk 0:03:00.2]} 4... d6 {[%clk 0:02:59.4]} 5. Nf3 {[%clk
0:02:59.9]} 5... Nc6 {[%clk 0:02:58.7]} 6. Bf4 {[%clk 0:02:57.7]} 6... dxe5
{[%clk 0:02:49.6]} 7. Qxd8+ {[%clk 0:02:57.3]} 7... Nxd8 {[%clk 0:02:50.5]} 8.
Nxe5 {[%clk 0:02:53.4]} 8... f6 {[%clk 0:02:49.2]} 9. Nd3 {[%clk 0:02:53.7]}
9... e5 {[%clk 0:02:48.9]} 10. Be3 {[%clk 0:02:54.3]} 10... Bd6 {[%clk
0:02:44.7]} 11. f4 {[%clk 0:02:09.4]} 11... e4 {[%clk 0:02:15.5]} 12. Nc5 {[%clk
0:02:07]} 12... f5 {[%clk 0:02:07.6]} 13. Bc4 {[%clk 0:01:55.5]} 13... b6 {[%clk
0:01:52.2]} 14. Nb3 {[%clk 0:01:43.9]} 14... Be6 {[%clk 0:01:37.1]} 15. Be2
{[%clk 0:01:42.4]} 15... Bd7 {[%clk 0:00:49.7]} 16. a4 {[%clk 0:01:39.7]} 16...
a5 {[%clk 0:00:48.4]} 17. Nd2 {[%clk 0:01:34.1]} 17... Ne6 {[%clk 0:00:46.7]}
18. g3 {[%clk 0:01:25.4]} 18... Bc5 {[%clk 0:00:46.8]} 19. Nf1 {[%clk
0:01:17.8]} 19... O-O-O {[%clk 0:00:43.2]} 20. Bc4 {[%clk 0:01:14.4]} 20... Bxe3
{[%clk 0:00:38.1]} 21. Nxe3 {[%clk 0:01:15.3]} 21... Nc5 {[%clk 0:00:36.2]} 22.
b3 {[%clk 0:01:14.1]} 22... c6 {[%clk 0:00:30.6]} 23. O-O-O {[%clk 0:01:07.5]}
23... Kc7 {[%clk 0:00:30.6]} 24. Rd2 {[%clk 0:01:05.9]} 24... Bc8 {[%clk
0:00:28.5]} 25. Rhd1 {[%clk 0:01:00.8]} 25... Rxd2 {[%clk 0:00:28.5]} 26. Rxd2
{[%clk 0:01:01.7]} 26... g6 {[%clk 0:00:26.9]} 27. h3 {[%clk 0:00:49.6]} 27...
Be6 {[%clk 0:00:26.5]} 28. Be2 {[%clk 0:00:48.3]} 28... h5 {[%clk 0:00:24.3]}
29. h4 {[%clk 0:00:45.8]} 29... Rd8 {[%clk 0:00:23.3]} 30. Rxd8 {[%clk
0:00:44.1]} 30... Kxd8 {[%clk 0:00:24.2]} 31. Kd2 {[%clk 0:00:43.8]} 31... Kd7
{[%clk 0:00:23.5]} 32. Bc4 {[%clk 0:00:38.3]} 32... Kd6 {[%clk 0:00:08.3]} 33.
Be2 {[%clk 0:00:22.3]} 33... Nd7 {[%clk 0:00:07.5]} 34. b4 {[%clk 0:00:20.5]}
34... c5 {[%clk 0:00:05.8]} 35. bxa5 {[%clk 0:00:19.3]} 35... bxa5 {[%clk
0:00:06.7]} 36. Bb5 {[%clk 0:00:19.7]} 36... Nb6 {[%clk 0:00:07.3]} 37. c4
{[%clk 0:00:19.7]} 37... Bd7 {[%clk 0:00:06.8]} 38. Kc3 {[%clk 0:00:15]} 38...
Nxa4+ {[%clk 0:00:06.5]} 39. Bxa4 {[%clk 0:00:10.8]} 39... Bxa4 {[%clk
0:00:07.4]} 40. Kb2 {[%clk 0:00:10.3]} 40... Bc6 {[%clk 0:00:06]} 41. Kb3 {[%clk
0:00:10.5]} 41... Ke6 {[%clk 0:00:06]} 42. c3 {[%clk 0:00:10.4]} 42... Kd6
{[%clk 0:00:04.5]} 43. Ka3 {[%clk 0:00:10.7]} 43... Kc7 {[%clk 0:00:04.2]} 44.
Kb3 {[%clk 0:00:10.7]} 44... Kd6 {[%clk 0:00:04.4]} 45. Ka3 {[%clk 0:00:11.2]}
45... Ke7 {[%clk 0:00:04.8]} 46. Kb3 {[%clk 0:00:11.6]} 46... Kd6 {[%clk
0:00:04]} 1/2-1/2

[Event "*** SCC Grand Prix: Titled Tuesday Blitz"]
[Site "Chess.com"]
[Date "2020.08.04"]
[Round "6"]
[White "GianmarcoVaR"]
[Black "MF1966Idrisov"]
[Result "0-1"]
[WhiteElo "2451"]
[BlackElo "2356"]
[TimeControl "180+1"]
[EndTime "14:51:13 PDT"]
[Termination "MF1966Idrisov won on time"]

1. d4 {[%clk 0:02:56.5]} 1... d6 {[%clk 0:02:58.8]} 2. c4 {[%clk 0:02:55]} 2...
f5 {[%clk 0:02:58.7]} 3. g3 {[%clk 0:02:52.3]} 3... e6 {[%clk 0:02:58.7]} 4. Bg2
{[%clk 0:02:52]} 4... Nf6 {[%clk 0:02:59.3]} 5. Nh3 {[%clk 0:02:52.3]} 5... Be7
{[%clk 0:02:59.6]} 6. O-O {[%clk 0:02:52.5]} 6... O-O {[%clk 0:02:59.6]} 7. Nc3
{[%clk 0:02:46.4]} 7... e5 {[%clk 0:02:59.3]} 8. e4 {[%clk 0:02:45]} 8... Nc6
{[%clk 0:02:58]} 9. dxe5 {[%clk 0:02:39.5]} 9... dxe5 {[%clk 0:02:55.8]} 10.
exf5 {[%clk 0:02:39.1]} 10... Bxf5 {[%clk 0:02:55]} 11. Ng5 {[%clk 0:02:38.4]}
11... h6 {[%clk 0:02:40]} 12. Nge4 {[%clk 0:02:38.4]} 12... Nxe4 {[%clk
0:02:39.6]} 13. Nxe4 {[%clk 0:02:38.7]} 13... Nd4 {[%clk 0:02:38.1]} 14. Be3
{[%clk 0:02:10.1]} 14... c6 {[%clk 0:02:36.2]} 15. f4 {[%clk 0:01:48.1]} 15...
Qd7 {[%clk 0:02:02.2]} 16. fxe5 {[%clk 0:01:46.9]} 16... c5 {[%clk 0:02:01.8]}
17. Nc3 {[%clk 0:01:38.3]} 17... Nc2 {[%clk 0:01:48]} 18. Qxd7 {[%clk
0:00:46.6]} 18... Bxd7 {[%clk 0:01:46.2]} 19. Rxf8+ {[%clk 0:00:46.4]} 19...
Rxf8 {[%clk 0:01:43.2]} 20. Rd1 {[%clk 0:00:46.9]} 20... Bg4 {[%clk 0:01:25.7]}
21. Rd3 {[%clk 0:00:47]} 21... Ne1 {[%clk 0:01:12.3]} 22. Rd2 {[%clk 0:00:39.2]}
22... Nxg2 {[%clk 0:01:06.3]} 23. Kxg2 {[%clk 0:00:39]} 23... Bf3+ {[%clk
0:00:59.3]} 24. Kg1 {[%clk 0:00:39.2]} 24... Bc6 {[%clk 0:00:59.1]} 25. Nd5
{[%clk 0:00:37.5]} 25... Re8 {[%clk 0:00:52.9]} 26. Nc7 {[%clk 0:00:36.1]} 26...
Rc8 {[%clk 0:00:49.2]} 27. Ne6 {[%clk 0:00:34.4]} 27... b6 {[%clk 0:00:48.6]}
28. h4 {[%clk 0:00:30.3]} 28... Kf7 {[%clk 0:00:42.2]} 29. Nf4 {[%clk
0:00:30.1]} 29... Rd8 {[%clk 0:00:42.1]} 30. h5 {[%clk 0:00:07.6]} 30... Rxd2
{[%clk 0:00:38.2]} 31. Bxd2 {[%clk 0:00:08.5]} 31... Bg5 {[%clk 0:00:38.3]} 32.
e6+ {[%clk 0:00:08.3]} 32... Ke7 {[%clk 0:00:36.4]} 33. Nd5+ {[%clk 0:00:06.9]}
33... Kxe6 {[%clk 0:00:34]} 34. Bxg5 {[%clk 0:00:07.3]} 34... hxg5 {[%clk
0:00:32.6]} 35. Nc7+ {[%clk 0:00:03]} 35... Kf5 {[%clk 0:00:28.2]} 36. Kf2
{[%clk 0:00:03.1]} 36... Bd7 {[%clk 0:00:21.2]} 37. Nd5 {[%clk 0:00:03]} 37...
Ke5 {[%clk 0:00:19.8]} 38. Ne3 {[%clk 0:00:02.7]} 38... Be6 {[%clk 0:00:18.8]}
39. b3 {[%clk 0:00:03]} 39... Kd4 {[%clk 0:00:18.7]} 40. Ke2 {[%clk 0:00:03.5]}
40... Kc3 {[%clk 0:00:18.8]} 41. g4 {[%clk 0:00:03.9]} 41... Kb2 {[%clk
0:00:18.6]} 42. Nf5 {[%clk 0:00:04]} 42... Kxa2 {[%clk 0:00:17.4]} 43. Kf3
{[%clk 0:00:03.8]} 43... Kxb3 {[%clk 0:00:16.8]} 44. Nxg7 {[%clk 0:00:04.2]}
44... Bg8 {[%clk 0:00:16.2]} 45. h6 {[%clk 0:00:02.6]} 45... a5 {[%clk
0:00:15.8]} 46. Ne8 {[%clk 0:00:01.6]} 46... Bh7 {[%clk 0:00:14.5]} 47. Nf6
{[%clk 0:00:01.7]} 47... Bg6 {[%clk 0:00:14.6]} 0-1

[Event "*** SCC Grand Prix: Titled Tuesday Blitz"]
[Site "Chess.com"]
[Date "2020.08.04"]
[Round "6"]
[White "chenxiaoyuer"]
[Black "keepitcool9499"]
[Result "0-1"]
[WhiteElo "2442"]
[BlackElo "2646"]
[TimeControl "180+1"]
[EndTime "14:51:16 PDT"]
[Termination "keepitcool9499 won by checkmate"]

1. e4 {[%clk 0:03:00.9]} 1... e6 {[%clk 0:03:00.9]} 2. d4 {[%clk 0:03:00.2]}
2... d5 {[%clk 0:03:01.5]} 3. Nd2 {[%clk 0:03:00]} 3... c5 {[%clk 0:03:00.7]} 4.
Ngf3 {[%clk 0:02:59.8]} 4... Nc6 {[%clk 0:02:58.6]} 5. exd5 {[%clk 0:02:55.7]}
5... Qxd5 {[%clk 0:02:57.4]} 6. Bc4 {[%clk 0:02:52.8]} 6... Qh5 {[%clk
0:02:46.6]} 7. dxc5 {[%clk 0:02:36.3]} 7... Bxc5 {[%clk 0:02:39.8]} 8. Ne4
{[%clk 0:02:34.7]} 8... Nf6 {[%clk 0:02:31.2]} 9. Ng3 {[%clk 0:02:08.9]} 9...
Bxf2+ {[%clk 0:02:25.1]} 10. Kxf2 {[%clk 0:02:03]} 10... Qc5+ {[%clk 0:02:15]}
11. Be3 {[%clk 0:02:01.3]} 11... Qxc4 {[%clk 0:02:07.7]} 12. h3 {[%clk
0:01:50.7]} 12... Nd5 {[%clk 0:02:02.4]} 13. Nd2 {[%clk 0:01:15.4]} 13... Qb4
{[%clk 0:01:49.4]} 14. Nde4 {[%clk 0:00:36.8]} 14... Nxe3 {[%clk 0:01:44.2]} 15.
Kxe3 {[%clk 0:00:34.4]} 15... Qb6+ {[%clk 0:01:40.9]} 16. Ke2 {[%clk 0:00:19.6]}
16... O-O {[%clk 0:01:37.7]} 17. Qd3 {[%clk 0:00:10.5]} 17... Qd4 {[%clk
0:01:25.6]} 18. c3 {[%clk 0:00:08.4]} 18... Qxd3+ {[%clk 0:01:24.4]} 19. Kxd3
{[%clk 0:00:09.3]} 19... b6 {[%clk 0:01:24.2]} 20. Kc2 {[%clk 0:00:08.4]} 20...
Bb7 {[%clk 0:01:22.5]} 21. Rad1 {[%clk 0:00:07.8]} 21... Rad8 {[%clk 0:01:22.6]}
22. Nd6 {[%clk 0:00:07.2]} 22... Ba6 {[%clk 0:01:21]} 23. b4 {[%clk 0:00:06.8]}
23... Ne5 {[%clk 0:01:13.4]} 24. b5 {[%clk 0:00:05.7]} 24... Bc8 {[%clk
0:01:11.8]} 25. Nge4 {[%clk 0:00:05.5]} 25... h6 {[%clk 0:01:05.2]} 26. c4
{[%clk 0:00:04.4]} 26... a6 {[%clk 0:01:02.5]} 27. a4 {[%clk 0:00:04.2]} 27...
axb5 {[%clk 0:01:02.3]} 28. axb5 {[%clk 0:00:04.2]} 28... f5 {[%clk 0:01:00.7]}
29. Nc3 {[%clk 0:00:03.8]} 29... Rd7 {[%clk 0:01:00.4]} 30. Na4 {[%clk
0:00:03.9]} 30... Rfd8 {[%clk 0:00:58.4]} 31. Nxc8 {[%clk 0:00:03.7]} 31... Rxc8
{[%clk 0:00:56.4]} 32. Nxb6 {[%clk 0:00:03.1]} 32... Rxd1 {[%clk 0:00:55.7]} 33.
Rxd1 {[%clk 0:00:03.6]} 33... Rb8 {[%clk 0:00:53.3]} 34. Rd6 {[%clk 0:00:03.6]}
34... Kf7 {[%clk 0:00:44.3]} 35. Nd7 {[%clk 0:00:03.5]} 35... Nxc4 {[%clk
0:00:41.4]} 36. Rc6 {[%clk 0:00:03.6]} 36... Rd8 {[%clk 0:00:38.3]} 37. Rc7
{[%clk 0:00:03.2]} 37... Ke8 {[%clk 0:00:32.7]} 38. Rxc4 {[%clk 0:00:02.4]}
38... Kxd7 {[%clk 0:00:30.1]} 39. b6 {[%clk 0:00:02.6]} 39... Rb8 {[%clk
0:00:29.6]} 40. Rb4 {[%clk 0:00:02.7]} 40... Kc6 {[%clk 0:00:29.4]} 41. Kd3
{[%clk 0:00:03]} 41... Rxb6 {[%clk 0:00:29.5]} 42. Rc4+ {[%clk 0:00:03.6]} 42...
Kd6 {[%clk 0:00:28.8]} 43. Rc8 {[%clk 0:00:03.8]} 43... Rb7 {[%clk 0:00:28.4]}
44. Kd4 {[%clk 0:00:03.7]} 44... Rd7 {[%clk 0:00:28.4]} 45. Kc4 {[%clk
0:00:03.5]} 45... Rc7+ {[%clk 0:00:27.7]} 46. Rxc7 {[%clk 0:00:03.3]} 46... Kxc7
{[%clk 0:00:28.6]} 47. Kc5 {[%clk 0:00:04.2]} 47... Kd7 {[%clk 0:00:29.5]} 48.
Kd4 {[%clk 0:00:04.5]} 48... Kd6 {[%clk 0:00:29.8]} 49. Ke3 {[%clk 0:00:05.4]}
49... e5 {[%clk 0:00:30.4]} 50. Kf3 {[%clk 0:00:05.9]} 50... Ke6 {[%clk
0:00:31]} 51. Ke3 {[%clk 0:00:06.8]} 51... Kf6 {[%clk 0:00:31.4]} 52. Kf3 {[%clk
0:00:07.7]} 52... g5 {[%clk 0:00:32.1]} 53. Ke3 {[%clk 0:00:08.3]} 53... e4
{[%clk 0:00:32.6]} 54. Ke2 {[%clk 0:00:08.6]} 54... Ke5 {[%clk 0:00:33]} 55. Ke3
{[%clk 0:00:08.9]} 55... f4+ {[%clk 0:00:33.4]} 56. Ke2 {[%clk 0:00:09.8]} 56...
e3 {[%clk 0:00:33.7]} 57. Kf3 {[%clk 0:00:09.8]} 57... h5 {[%clk 0:00:33.9]} 58.
Ke2 {[%clk 0:00:10.7]} 58... g4 {[%clk 0:00:34]} 59. hxg4 {[%clk 0:00:11.3]}
59... hxg4 {[%clk 0:00:34.9]} 60. g3 {[%clk 0:00:11.8]} 60... Ke4 {[%clk
0:00:32.4]} 61. gxf4 {[%clk 0:00:10]} 61... Kxf4 {[%clk 0:00:33.3]} 62. Ke1
{[%clk 0:00:10.9]} 62... Kf3 {[%clk 0:00:33.5]} 63. Kf1 {[%clk 0:00:11.8]} 63...
g3 {[%clk 0:00:33.8]} 64. Ke1 {[%clk 0:00:12.6]} 64... g2 {[%clk 0:00:34.1]} 65.
Kd1 {[%clk 0:00:12.6]} 65... g1=Q+ {[%clk 0:00:34.7]} 66. Kc2 {[%clk 0:00:13.5]}
66... e2 {[%clk 0:00:35.2]} 67. Kc3 {[%clk 0:00:14.4]} 67... e1=Q+ {[%clk
0:00:35.7]} 68. Kc4 {[%clk 0:00:15.3]} 68... Qgf2 {[%clk 0:00:35.6]} 69. Kd5
{[%clk 0:00:15.9]} 69... Qfd2+ {[%clk 0:00:36.1]} 70. Kc6 {[%clk 0:00:15.9]}
70... Qec1+ {[%clk 0:00:37]} 71. Kb7 {[%clk 0:00:16.7]} 71... Qdb2+ {[%clk
0:00:37.5]} 72. Ka8 {[%clk 0:00:17.6]} 72... Qca1# {[%clk 0:00:37.6]} 0-1

[Event "*** SCC Grand Prix: Titled Tuesday Blitz"]
[Site "Chess.com"]
[Date "2020.08.04"]
[Round "6"]
[White "ChronicUnhappiness"]
[Black "BlackBoarder"]
[Result "0-1"]
[WhiteElo "2380"]
[BlackElo "2554"]
[TimeControl "180+1"]
[EndTime "14:51:17 PDT"]
[Termination "BlackBoarder won on time"]

1. d4 {[%clk 0:03:00.9]} 1... e6 {[%clk 0:02:59.5]} 2. c4 {[%clk 0:03:00.4]}
2... Nf6 {[%clk 0:02:59.2]} 3. Nc3 {[%clk 0:02:59.1]} 3... Bb4 {[%clk 0:02:59]}
4. Bd2 {[%clk 0:02:58.7]} 4... c5 {[%clk 0:02:53.2]} 5. dxc5 {[%clk 0:02:54.5]}
5... Bxc5 {[%clk 0:02:52.1]} 6. Nf3 {[%clk 0:02:52.5]} 6... Nc6 {[%clk
0:02:46.8]} 7. g3 {[%clk 0:02:51.9]} 7... Qb6 {[%clk 0:02:28.2]} 8. e3 {[%clk
0:02:51.5]} 8... Qxb2 {[%clk 0:02:28]} 9. Na4 {[%clk 0:02:48.2]} 9... Qa3 {[%clk
0:02:26.2]} 10. Nxc5 {[%clk 0:02:30.8]} 10... Qxc5 {[%clk 0:02:25.8]} 11. Qc2
{[%clk 0:02:20.1]} 11... O-O {[%clk 0:02:22.7]} 12. Bg2 {[%clk 0:02:17.2]} 12...
d5 {[%clk 0:02:20.1]} 13. Rc1 {[%clk 0:02:16]} 13... dxc4 {[%clk 0:01:56.6]} 14.
Qxc4 {[%clk 0:02:15.2]} 14... Qxc4 {[%clk 0:01:55.1]} 15. Rxc4 {[%clk
0:02:14.7]} 15... Bd7 {[%clk 0:01:48.1]} 16. O-O {[%clk 0:02:13.7]} 16... Rac8
{[%clk 0:01:47.7]} 17. Rfc1 {[%clk 0:02:06]} 17... Rfd8 {[%clk 0:01:39.6]} 18.
Bc3 {[%clk 0:01:38.3]} 18... Nd5 {[%clk 0:01:32.2]} 19. Bb2 {[%clk 0:01:14.4]}
19... f6 {[%clk 0:01:16.9]} 20. Nd4 {[%clk 0:01:12.5]} 20... Ncb4 {[%clk
0:01:06.7]} 21. a3 {[%clk 0:00:46]} 21... Nd3 {[%clk 0:01:03.8]} 22. Rxc8 {[%clk
0:00:44.6]} 22... Rxc8 {[%clk 0:01:03.6]} 23. Rxc8+ {[%clk 0:00:43]} 23... Bxc8
{[%clk 0:01:03.8]} 24. Bxd5 {[%clk 0:00:40.2]} 24... exd5 {[%clk 0:00:57.5]} 25.
Bc3 {[%clk 0:00:39.3]} 25... Bd7 {[%clk 0:00:55.7]} 26. f3 {[%clk 0:00:36.6]}
26... Kf7 {[%clk 0:00:52.1]} 27. Nc2 {[%clk 0:00:36.1]} 27... Ke6 {[%clk
0:00:46.1]} 28. Ne1 {[%clk 0:00:35.7]} 28... Ne5 {[%clk 0:00:41.2]} 29. Kf2
{[%clk 0:00:31.5]} 29... Nc4 {[%clk 0:00:40.8]} 30. Bb4 {[%clk 0:00:31.2]} 30...
a5 {[%clk 0:00:39.6]} 31. Bc3 {[%clk 0:00:21]} 31... Nxa3 {[%clk 0:00:35.3]} 32.
Bxa5 {[%clk 0:00:19.7]} 32... Nc4 {[%clk 0:00:35.6]} 33. Bc3 {[%clk 0:00:17.9]}
33... Kd6 {[%clk 0:00:34.1]} 34. Nd3 {[%clk 0:00:17.2]} 34... Bf5 {[%clk
0:00:34.3]} 35. Nb2 {[%clk 0:00:15.2]} 35... Ne5 {[%clk 0:00:25.8]} 36. Ke2
{[%clk 0:00:13.7]} 36... Kc5 {[%clk 0:00:23.1]} 37. g4 {[%clk 0:00:09.9]} 37...
Bg6 {[%clk 0:00:21.2]} 38. h3 {[%clk 0:00:09.9]} 38... b5 {[%clk 0:00:17.3]} 39.
f4 {[%clk 0:00:09.3]} 39... Nc6 {[%clk 0:00:12.5]} 40. f5 {[%clk 0:00:08.8]}
40... Bf7 {[%clk 0:00:12.6]} 41. Nd3+ {[%clk 0:00:07.7]} 41... Kc4 {[%clk
0:00:12.5]} 42. Ba1 {[%clk 0:00:05.8]} 42... b4 {[%clk 0:00:12.3]} 43. Kd2
{[%clk 0:00:05.8]} 43... Kb3 {[%clk 0:00:11.7]} 44. Nc1+ {[%clk 0:00:04.4]}
44... Ka3 {[%clk 0:00:11]} 45. Kc2 {[%clk 0:00:03.5]} 45... Na5 {[%clk
0:00:10.8]} 46. Bb2+ {[%clk 0:00:03]} 46... Ka4 {[%clk 0:00:11.3]} 47. Nd3
{[%clk 0:00:02.4]} 47... Nc4 {[%clk 0:00:11.4]} 48. Bc1 {[%clk 0:00:01.7]} 48...
Kb5 {[%clk 0:00:08.8]} 0-1